[Event "Titled Tuesday Blitz February 22 Late 2022"]
[White "Przybylski, Wojciech"]
[Black "Aradhya, Garg"]
[WhiteFideId "1117599"]
[BlackFideId "25006746"]
[WhiteElo "2133"]
[BlackElo "2169"]
[Result "1-0"]
[Round "07"]
[TimeControl "180+1"]
[Date "2022.02.23"]
[WhiteClock "0:00:07"]
[BlackClock "0:00:13"]

1. e4 {[%clk 0:03:00]}  e5 {[%clk 0:02:49]} 2. Nf3 {[%clk 0:03:00]}  Nc6 {[%clk 0:02:49]} 3. Bb5 {[%clk 0:03:00]}  a6 {[%clk 0:02:49]} 4. Ba4 {[%clk 0:03:00]}  Nge7 {[%clk 0:02:50]} 5. O-O {[%clk 0:02:59]}  Ng6 {[%clk 0:02:50]} 6. c3 {[%clk 0:02:57]}  d5 {[%clk 0:02:49]} 7. d3 {[%clk 0:02:57]}  Be7 {[%clk 0:02:48]} 8. Nbd2 {[%clk 0:02:55]}  O-O {[%clk 0:02:48]} 9. Re1 {[%clk 0:02:55]}  dxe4 {[%clk 0:02:46]} 10. dxe4 {[%clk 0:02:53]}  Be6 {[%clk 0:02:46]} 11. Bb3 {[%clk 0:02:48]}  Qd7 {[%clk 0:02:44]} 12. Bxe6 {[%clk 0:02:45]}  Qxe6 {[%clk 0:02:44]} 13. Nf1 {[%clk 0:02:44]}  Rfd8 {[%clk 0:02:40]} 14. Qc2 {[%clk 0:02:43]}  f6 {[%clk 0:02:35]} 15. Ng3 {[%clk 0:02:41]}  a5 {[%clk 0:02:34]} 16. Be3 {[%clk 0:02:38]}  a4 {[%clk 0:02:28]} 17. b3 {[%clk 0:02:30]}  b5 {[%clk 0:02:25]} 18. h3 {[%clk 0:02:20]}  Ra6 {[%clk 0:02:15]} 19. b4 {[%clk 0:01:54]}  Qc4 {[%clk 0:01:55]} 20. Rac1 {[%clk 0:01:31]}  Raa8 {[%clk 0:01:52]} 21. Nd2 {[%clk 0:01:10]}  Qd3 {[%clk 0:01:52]} 22. Nb1 {[%clk 0:01:04]}  Nf4 {[%clk 0:01:49]} 23. Na3 {[%clk 0:00:59]}  Qxc2 {[%clk 0:01:42]} 24. Rxc2 {[%clk 0:00:56]}  Nxb4 {[%clk 0:01:42]} 25. cxb4 {[%clk 0:00:45]}  Bxb4 {[%clk 0:01:43]} 26. Rb1 {[%clk 0:00:43]}  Bxa3 {[%clk 0:01:42]} 27. Rxb5 {[%clk 0:00:42]}  Ne6 {[%clk 0:01:36]} 28. Rc6 {[%clk 0:00:37]}  Rd6 {[%clk 0:01:34]} 29. Rc2 {[%clk 0:00:22]}  c5 {[%clk 0:01:27]} 30. Nf5 {[%clk 0:00:22]}  Rd1+ {[%clk 0:01:24]} 31. Kh2 {[%clk 0:00:21]}  g6 {[%clk 0:01:18]} 32. Ne7+ {[%clk 0:00:20]}  Kf7 {[%clk 0:01:17]} 33. Nd5 {[%clk 0:00:20]}  Ra7 {[%clk 0:01:14]} 34. Rc3 {[%clk 0:00:17]}  Bb4 {[%clk 0:01:11]} 35. Nxb4 {[%clk 0:00:17]}  cxb4 {[%clk 0:01:11]} 36. Rxb4 {[%clk 0:00:16]}  Nd4 {[%clk 0:00:31]} 37. Ra3 {[%clk 0:00:16]}  f5 {[%clk 0:00:16]} 38. Rbxa4 {[%clk 0:00:15]}  Rxa4 {[%clk 0:00:15]} 39. Rxa4 {[%clk 0:00:16]}  fxe4 {[%clk 0:00:16]} 40. Ra7+ {[%clk 0:00:14]}  Ke6 {[%clk 0:00:15]} 41. a4 {[%clk 0:00:13]}  Ra1 {[%clk 0:00:13]} 42. a5 {[%clk 0:00:13]}  Nc6 {[%clk 0:00:12]} 43. Ra6 {[%clk 0:00:12]}  Kd5 {[%clk 0:00:12]} 44. Bb6 {[%clk 0:00:12]}  e3 {[%clk 0:00:10]} 45. fxe3 {[%clk 0:00:12]}  Ke4 {[%clk 0:00:10]} 46. Ra8 {[%clk 0:00:11]}  Nb4 {[%clk 0:00:10]} 47. Kg3 {[%clk 0:00:04]}  Nd5 {[%clk 0:00:10]} 48. Re8 {[%clk 0:00:04]}  Ra3 {[%clk 0:00:08]} 49. Kh2 {[%clk 0:00:02]}  Nxe3 {[%clk 0:00:09]} 50. Bc7 {[%clk 0:00:01]}  Nc4 {[%clk 0:00:08]} 51. Re7 {[%clk 0:00:01]}  h5 {[%clk 0:00:07]} 52. Re6 {[%clk 0:00:01]}  Kf5 {[%clk 0:00:07]} 53. Re8 {[%clk 0:00:02]}  Nxa5 {[%clk 0:00:07]} 54. Rxe5+ {[%clk 0:00:01]}  Kf6 {[%clk 0:00:07]} 55. Rxa5 {[%clk 0:00:02]}  Re3 {[%clk 0:00:07]} 56. Ra6+ {[%clk 0:00:03]}  Kf7 {[%clk 0:00:07]} 57. Bf4 {[%clk 0:00:03]}  Re4 {[%clk 0:00:07]} 58. Bg5 {[%clk 0:00:03]}  Re6 {[%clk 0:00:07]} 59. Ra7+ {[%clk 0:00:03]}  Kg8 {[%clk 0:00:07]} 60. h4 {[%clk 0:00:04]}  Re4 {[%clk 0:00:07]} 61. Ra8+ {[%clk 0:00:04]}  Kf7 {[%clk 0:00:06]} 62. Ra7+ {[%clk 0:00:05]}  Kg8 {[%clk 0:00:06]} 63. Ra6 {[%clk 0:00:05]}  Kf7 {[%clk 0:00:07]} 64. Kg3 {[%clk 0:00:06]}  Rg4+ {[%clk 0:00:06]} 65. Kh3 {[%clk 0:00:06]}  Re4 {[%clk 0:00:06]} 66. Rf6+ {[%clk 0:00:06]}  Kg7 {[%clk 0:00:06]} 67. Rc6 {[%clk 0:00:07]}  Rb4 {[%clk 0:00:06]} 68. Rc7+ {[%clk 0:00:07]}  Kg8 {[%clk 0:00:06]} 69. g3 {[%clk 0:00:07]}  Rb1 {[%clk 0:00:06]} 70. Bf6 {[%clk 0:00:06]}  Rh1+ {[%clk 0:00:06]} 71. Kg2 {[%clk 0:00:06]}  Rd1 {[%clk 0:00:07]} 72. Be5 {[%clk 0:00:06]}  Kf8 {[%clk 0:00:06]} 73. Bf4 {[%clk 0:00:06]}  Rd5 {[%clk 0:00:06]} 74. Kf3 {[%clk 0:00:06]}  Ke8 {[%clk 0:00:06]} 75. Ke4 {[%clk 0:00:06]}  Ra5 {[%clk 0:00:05]} 76. Rb7 {[%clk 0:00:07]}  Kf8 {[%clk 0:00:06]} 77. Rd7 {[%clk 0:00:06]}  Ra4+ {[%clk 0:00:06]} 78. Ke5 {[%clk 0:00:06]}  Ra6 {[%clk 0:00:06]} 79. Rd6 {[%clk 0:00:05]}  Rxd6 {[%clk 0:00:07]} 80. Kxd6 {[%clk 0:00:05]}  Kf7 {[%clk 0:00:07]} 81. Ke5 {[%clk 0:00:06]}  Ke7 {[%clk 0:00:08]} 82. Bg5+ {[%clk 0:00:05]}  Kf7 {[%clk 0:00:08]} 83. Bf6 {[%clk 0:00:06]}  Kg8 {[%clk 0:00:06]} 84. Ke6 {[%clk 0:00:05]}  Kf8 {[%clk 0:00:06]} 85. Bg5 {[%clk 0:00:05]}  Kg7 {[%clk 0:00:06]} 86. Bf4 {[%clk 0:00:05]}  Kg8 {[%clk 0:00:06]} 87. Kf6 {[%clk 0:00:06]}  Kh7 {[%clk 0:00:07]} 88. Bg5 {[%clk 0:00:06]}  Kg8 {[%clk 0:00:06]} 89. Kxg6 {[%clk 0:00:07]}  Kh8 {[%clk 0:00:07]} 90. Kxh5 {[%clk 0:00:07]}  Kh7 {[%clk 0:00:07]} 91. Bf4 {[%clk 0:00:07]}  Kg7 {[%clk 0:00:08]} 92. g4 {[%clk 0:00:06]}  Kf6 {[%clk 0:00:09]} 93. Kh6 {[%clk 0:00:06]}  Ke6 {[%clk 0:00:09]} 94. g5 {[%clk 0:00:06]}  Kf5 {[%clk 0:00:10]} 95. g6 {[%clk 0:00:06]}  Kxf4 {[%clk 0:00:10]} 96. g7 {[%clk 0:00:07]}  Kg3 {[%clk 0:00:11]} 97. g8=Q+ {[%clk 0:00:07]}  Kxh4 {[%clk 0:00:12]} 98. Kg6 {[%clk 0:00:07]}  Kh3 {[%clk 0:00:13]} 99. Kf5 {[%clk 0:00:07]}  Kh2 {[%clk 0:00:12]} 100. Kf4 {[%clk 0:00:07]}  Kh1 {[%clk 0:00:12]} 101. Kf3 {[%clk 0:00:07]}  Kh2 {[%clk 0:00:13]} 102. Qg2# {[%clk 0:00:07]} 1-0


[Site "https://www.chess.com"]

[Event "Titled Tuesday Blitz February 22 Late 2022"]
[White "Rosen, Eric"]
[Black "Romero Ruscalleda, Josep"]
[WhiteFideId "2032562"]
[BlackFideId "2231859"]
[WhiteElo "2362"]
[BlackElo "2386"]
[Result "1/2-1/2"]
[Round "07"]
[TimeControl "180+1"]
[Date "2022.02.23"]
[WhiteClock "0:00:04"]
[BlackClock "0:00:37"]

1. e4 {[%clk 0:02:56]}  g6 {[%clk 0:03:00]} 2. d4 {[%clk 0:02:56]}  Bg7 {[%clk 0:03:00]} 3. Nf3 {[%clk 0:02:54]}  d6 {[%clk 0:03:00]} 4. Bc4 {[%clk 0:02:54]}  Nf6 {[%clk 0:02:59]} 5. Qe2 {[%clk 0:02:54]}  O-O {[%clk 0:02:59]} 6. e5 {[%clk 0:02:53]}  dxe5 {[%clk 0:02:59]} 7. dxe5 {[%clk 0:02:54]}  Nd5 {[%clk 0:02:58]} 8. h3 {[%clk 0:02:54]}  c6 {[%clk 0:02:58]} 9. O-O {[%clk 0:02:53]}  Be6 {[%clk 0:02:57]} 10. c3 {[%clk 0:02:47]}  Nc7 {[%clk 0:02:57]} 11. Bb3 {[%clk 0:02:33]}  Nd7 {[%clk 0:02:57]} 12. Bf4 {[%clk 0:02:32]}  Nc5 {[%clk 0:02:54]} 13. Bc2 {[%clk 0:02:22]}  Qc8 {[%clk 0:02:46]} 14. Nbd2 {[%clk 0:02:21]}  Bf5 {[%clk 0:02:45]} 15. Ne4 {[%clk 0:01:47]}  N7e6 {[%clk 0:02:26]} 16. Bg3 {[%clk 0:01:40]}  Nxe4 {[%clk 0:02:24]} 17. Bxe4 {[%clk 0:01:40]}  Nc5 {[%clk 0:02:23]} 18. Bc2 {[%clk 0:01:31]}  Bxc2 {[%clk 0:02:14]} 19. Qxc2 {[%clk 0:01:31]}  Qf5 {[%clk 0:02:14]} 20. Qxf5 {[%clk 0:01:17]}  gxf5 {[%clk 0:02:13]} 21. b4 {[%clk 0:01:10]}  Ne4 {[%clk 0:02:09]} 22. c4 {[%clk 0:01:03]}  Nxg3 {[%clk 0:02:01]} 23. fxg3 {[%clk 0:01:03]}  e6 {[%clk 0:02:01]} 24. Rad1 {[%clk 0:00:59]}  Rfd8 {[%clk 0:02:01]} 25. Kf2 {[%clk 0:00:56]}  Kf8 {[%clk 0:01:59]} 26. Ke2 {[%clk 0:00:55]}  Ke7 {[%clk 0:01:58]} 27. Rxd8 {[%clk 0:00:55]}  Rxd8 {[%clk 0:01:58]} 28. Rd1 {[%clk 0:00:54]}  Rxd1 {[%clk 0:01:57]} 29. Kxd1 {[%clk 0:00:55]}  f6 {[%clk 0:01:52]} 30. exf6+ {[%clk 0:00:56]}  Bxf6 {[%clk 0:01:52]} 31. Ke2 {[%clk 0:00:53]}  e5 {[%clk 0:01:52]} 32. Nd2 {[%clk 0:00:51]}  e4 {[%clk 0:01:49]} 33. Nb3 {[%clk 0:00:51]}  Bc3 {[%clk 0:01:47]} 34. a3 {[%clk 0:00:30]}  b6 {[%clk 0:01:42]} 35. Ke3 {[%clk 0:00:25]}  Ke6 {[%clk 0:01:38]} 36. g4 {[%clk 0:00:23]}  fxg4 {[%clk 0:01:34]} 37. hxg4 {[%clk 0:00:23]}  Ke5 {[%clk 0:01:34]} 38. b5 {[%clk 0:00:14]}  cxb5 {[%clk 0:01:30]} 39. cxb5 {[%clk 0:00:14]}  h6 {[%clk 0:01:26]} 40. a4 {[%clk 0:00:14]}  Bb4 {[%clk 0:01:22]} 41. Ke2 {[%clk 0:00:09]}  Kf4 {[%clk 0:01:21]} 42. Nd4 {[%clk 0:00:09]}  Kxg4 {[%clk 0:01:16]} 43. Nc6 {[%clk 0:00:09]}  Bc5 {[%clk 0:01:15]} 44. Nxa7 {[%clk 0:00:10]}  Kg3 {[%clk 0:01:15]} 45. Kf1 {[%clk 0:00:09]}  h5 {[%clk 0:01:10]} 46. Nc6 {[%clk 0:00:10]}  h4 {[%clk 0:01:09]} 47. Ne5 {[%clk 0:00:06]}  Kf4 {[%clk 0:01:03]} 48. Nd7 {[%clk 0:00:06]}  Bd4 {[%clk 0:01:02]} 49. Ke2 {[%clk 0:00:04]}  Kg3 {[%clk 0:01:02]} 50. Kf1 {[%clk 0:00:04]}  e3 {[%clk 0:01:01]} 51. a5 {[%clk 0:00:04]}  bxa5 {[%clk 0:01:00]} 52. b6 {[%clk 0:00:05]}  Bxb6 {[%clk 0:01:00]} 53. Nxb6 {[%clk 0:00:06]}  e2+ {[%clk 0:01:00]} 54. Kxe2 {[%clk 0:00:04]}  Kxg2 {[%clk 0:01:00]} 55. Nc4 {[%clk 0:00:03]}  h3 {[%clk 0:01:00]} 56. Ne3+ {[%clk 0:00:04]}  Kg1 {[%clk 0:00:58]} 57. Ng4 {[%clk 0:00:04]}  a4 {[%clk 0:00:57]} 58. Kd3 {[%clk 0:00:04]}  Kg2 {[%clk 0:00:56]} 59. Kc3 {[%clk 0:00:04]}  Kg3 {[%clk 0:00:56]} 60. Ne3 {[%clk 0:00:04]}  Kf3 {[%clk 0:00:55]} 61. Nf1 {[%clk 0:00:04]}  Kf2 {[%clk 0:00:55]} 62. Nh2 {[%clk 0:00:04]}  Kg3 {[%clk 0:00:53]} 63. Nf1+ {[%clk 0:00:04]}  Kf2 {[%clk 0:00:53]} 64. Nh2 {[%clk 0:00:04]}  Kg2 {[%clk 0:00:53]} 65. Ng4 {[%clk 0:00:05]}  a3 {[%clk 0:00:52]} 66. Kb3 {[%clk 0:00:05]}  Kf3 {[%clk 0:00:52]} 67. Nh2+ {[%clk 0:00:05]}  Kg3 {[%clk 0:00:52]} 68. Nf1+ {[%clk 0:00:06]}  Kf2 {[%clk 0:00:53]} 69. Nh2 {[%clk 0:00:06]}  Kg2 {[%clk 0:00:53]} 70. Ng4 {[%clk 0:00:06]}  a2 {[%clk 0:00:51]} 71. Kxa2 {[%clk 0:00:05]}  Kf3 {[%clk 0:00:51]} 72. Nh2+ {[%clk 0:00:05]}  Kf4 {[%clk 0:00:52]} 73. Kb2 {[%clk 0:00:05]}  Kg3 {[%clk 0:00:52]} 74. Nf1+ {[%clk 0:00:05]}  Kg2 {[%clk 0:00:52]} 75. Ne3+ {[%clk 0:00:05]}  Kf3 {[%clk 0:00:47]} 76. Nf1 {[%clk 0:00:05]}  Ke2 {[%clk 0:00:45]} 77. Nh2 {[%clk 0:00:05]}  Kf2 {[%clk 0:00:46]} 78. Kc2 {[%clk 0:00:05]}  Kg3 {[%clk 0:00:42]} 79. Nf1+ {[%clk 0:00:05]}  Kg2 {[%clk 0:00:41]} 80. Ne3+ {[%clk 0:00:05]}  Kf2 {[%clk 0:00:39]} 81. Kd3 {[%clk 0:00:03]}  Kf3 {[%clk 0:00:37]} 82. Nf1 {[%clk 0:00:04]} 1/2-1/2


[Site "https://www.chess.com"]

[Event "Titled Tuesday Blitz February 22 Late 2022"]
[White "Sailer, Mike"]
[Black "Lock, Gavin R"]
[WhiteFideId "2012901"]
[BlackFideId "408646"]
[WhiteElo "2109"]
[BlackElo "2104"]
[Result "1-0"]
[Round "07"]
[TimeControl "180+1"]
[Date "2022.02.23"]
[WhiteClock "0:00:20"]
[BlackClock "0:00:01"]

1. d4 {[%clk 0:02:59]}  d5 {[%clk 0:02:57]} 2. Nf3 {[%clk 0:03:00]}  Nf6 {[%clk 0:02:56]} 3. Bf4 {[%clk 0:03:01]}  e6 {[%clk 0:02:56]} 4. e3 {[%clk 0:03:02]}  Bd6 {[%clk 0:02:56]} 5. Bg3 {[%clk 0:02:59]}  O-O {[%clk 0:02:55]} 6. Bd3 {[%clk 0:02:56]}  c5 {[%clk 0:02:55]} 7. c3 {[%clk 0:02:57]}  Qc7 {[%clk 0:02:53]} 8. Nbd2 {[%clk 0:02:56]}  Nbd7 {[%clk 0:02:52]} 9. a3 {[%clk 0:02:49]}  e5 {[%clk 0:02:43]} 10. dxe5 {[%clk 0:02:48]}  Nxe5 {[%clk 0:02:44]} 11. Nxe5 {[%clk 0:02:49]}  Bxe5 {[%clk 0:02:44]} 12. Bxe5 {[%clk 0:02:49]}  Qxe5 {[%clk 0:02:45]} 13. Nf3 {[%clk 0:02:48]}  Qe7 {[%clk 0:02:40]} 14. O-O {[%clk 0:02:45]}  Bg4 {[%clk 0:02:40]} 15. Be2 {[%clk 0:02:45]}  Rad8 {[%clk 0:02:39]} 16. Qc2 {[%clk 0:02:45]}  h6 {[%clk 0:02:16]} 17. Rad1 {[%clk 0:02:43]}  Qe6 {[%clk 0:02:13]} 18. h3 {[%clk 0:02:32]}  Bf5 {[%clk 0:02:13]} 19. Qa4 {[%clk 0:02:30]}  a6 {[%clk 0:02:04]} 20. Qf4 {[%clk 0:02:25]}  Rfe8 {[%clk 0:01:56]} 21. Qc7 {[%clk 0:02:10]}  Qc8 {[%clk 0:01:43]} 22. Qxc8 {[%clk 0:02:07]}  Rxc8 {[%clk 0:01:43]} 23. c4 {[%clk 0:02:00]}  dxc4 {[%clk 0:01:33]} 24. Bxc4 {[%clk 0:02:00]}  b5 {[%clk 0:01:32]} 25. Be2 {[%clk 0:01:55]}  Red8 {[%clk 0:01:23]} 26. Ne5 {[%clk 0:01:52]}  c4 {[%clk 0:01:13]} 27. Bf3 {[%clk 0:01:48]}  Be4 {[%clk 0:01:12]} 28. Rxd8+ {[%clk 0:01:36]}  Rxd8 {[%clk 0:01:11]} 29. Nc6 {[%clk 0:01:32]}  Rd6 {[%clk 0:00:47]} 30. Bxe4 {[%clk 0:01:26]}  Nxe4 {[%clk 0:00:48]} 31. Nd4 {[%clk 0:01:27]}  Kf8 {[%clk 0:00:35]} 32. Rc1 {[%clk 0:01:25]}  g6 {[%clk 0:00:29]} 33. f3 {[%clk 0:01:25]}  Nc5 {[%clk 0:00:28]} 34. Kf1 {[%clk 0:01:20]}  Ke7 {[%clk 0:00:25]} 35. Ke2 {[%clk 0:01:20]}  f5 {[%clk 0:00:21]} 36. Rc2 {[%clk 0:01:16]}  Na4 {[%clk 0:00:20]} 37. f4 {[%clk 0:01:04]}  Nc5 {[%clk 0:00:19]} 38. g4 {[%clk 0:01:01]}  Kf6 {[%clk 0:00:11]} 39. gxf5 {[%clk 0:00:57]}  gxf5 {[%clk 0:00:12]} 40. Kf3 {[%clk 0:00:51]}  Ne4 {[%clk 0:00:11]} 41. Rg2 {[%clk 0:00:51]}  c3 {[%clk 0:00:09]} 42. bxc3 {[%clk 0:00:50]}  Nxc3 {[%clk 0:00:10]} 43. Rg8 {[%clk 0:00:45]}  Nb1 {[%clk 0:00:09]} 44. Rf8+ {[%clk 0:00:45]}  Ke7 {[%clk 0:00:08]} 45. Rxf5 {[%clk 0:00:28]}  Nxa3 {[%clk 0:00:08]} 46. Re5+ {[%clk 0:00:28]}  Kd7 {[%clk 0:00:06]} 47. f5 {[%clk 0:00:26]}  Nc4 {[%clk 0:00:06]} 48. Rc5 {[%clk 0:00:23]}  Nd2+ {[%clk 0:00:04]} 49. Kf4 {[%clk 0:00:23]}  Nc4 {[%clk 0:00:01]} 50. Ne6 {[%clk 0:00:21]}  Nb6 {[%clk 0:00:01]} 51. Rc7+ {[%clk 0:00:21]}  Ke8 {[%clk 0:00:01]} 52. Ke5 {[%clk 0:00:20]} 1-0


[Site "https://www.chess.com"]

[Event "Titled Tuesday Blitz February 22 Late 2022"]
[White "Sarana, Alexey"]
[Black "Moroni, Luca Jr"]
[WhiteFideId "24133795"]
[BlackFideId "865834"]
[WhiteElo "2665"]
[BlackElo "2573"]
[Result "1/2-1/2"]
[Round "07"]
[TimeControl "180+1"]
[Date "2022.02.22"]
[WhiteClock "0:00:04"]
[BlackClock "0:00:03"]

1. d4 {[%clk 0:03:00]}  d6 {[%clk 0:03:00]} 2. e4 {[%clk 0:03:00]}  e5 {[%clk 0:03:01]} 3. Nf3 {[%clk 0:02:47]}  exd4 {[%clk 0:03:00]} 4. Nxd4 {[%clk 0:02:40]}  Nf6 {[%clk 0:03:01]} 5. Nc3 {[%clk 0:02:41]}  Be7 {[%clk 0:03:01]} 6. g3 {[%clk 0:02:41]}  O-O {[%clk 0:03:01]} 7. Bg2 {[%clk 0:02:42]}  Re8 {[%clk 0:03:02]} 8. O-O {[%clk 0:02:43]}  Bf8 {[%clk 0:03:02]} 9. h3 {[%clk 0:02:40]}  c6 {[%clk 0:03:02]} 10. Bf4 {[%clk 0:02:37]}  a5 {[%clk 0:03:01]} 11. Re1 {[%clk 0:02:35]}  Na6 {[%clk 0:03:01]} 12. Qd2 {[%clk 0:02:32]}  Nc5 {[%clk 0:02:58]} 13. Rad1 {[%clk 0:02:33]}  a4 {[%clk 0:02:53]} 14. b4 {[%clk 0:02:29]}  axb3 {[%clk 0:02:52]} 15. cxb3 {[%clk 0:02:26]}  Qa5 {[%clk 0:02:47]} 16. Qb2 {[%clk 0:02:17]}  Qa6 {[%clk 0:02:29]} 17. Bf1 {[%clk 0:01:55]}  Qa7 {[%clk 0:02:19]} 18. Qc2 {[%clk 0:01:49]}  Na6 {[%clk 0:02:08]} 19. a3 {[%clk 0:01:28]}  Nc5 {[%clk 0:02:06]} 20. b4 {[%clk 0:01:27]}  Ne6 {[%clk 0:02:03]} 21. Nxe6 {[%clk 0:01:12]}  Bxe6 {[%clk 0:02:04]} 22. a4 {[%clk 0:01:12]}  d5 {[%clk 0:02:02]} 23. Be3 {[%clk 0:00:53]}  Qb8 {[%clk 0:01:56]} 24. b5 {[%clk 0:00:53]}  dxe4 {[%clk 0:01:47]} 25. Bd4 {[%clk 0:00:46]}  Be7 {[%clk 0:01:26]} 26. Bxf6 {[%clk 0:00:42]}  Bxf6 {[%clk 0:01:27]} 27. Nxe4 {[%clk 0:00:43]}  Be7 {[%clk 0:01:15]} 28. bxc6 {[%clk 0:00:32]}  bxc6 {[%clk 0:01:16]} 29. Bc4 {[%clk 0:00:32]}  Bxc4 {[%clk 0:01:08]} 30. Qxc4 {[%clk 0:00:32]}  Qb7 {[%clk 0:00:54]} 31. Rb1 {[%clk 0:00:22]}  Qc7 {[%clk 0:00:48]} 32. Nc3 {[%clk 0:00:17]}  Bf8 {[%clk 0:00:42]} 33. Rxe8 {[%clk 0:00:15]}  Rxe8 {[%clk 0:00:43]} 34. Nd5 {[%clk 0:00:15]}  Qd7 {[%clk 0:00:36]} 35. Nf4 {[%clk 0:00:12]}  Bd6 {[%clk 0:00:25]} 36. Rd1 {[%clk 0:00:11]}  Qc7 {[%clk 0:00:24]} 37. Ne2 {[%clk 0:00:08]}  h6 {[%clk 0:00:22]} 38. a5 {[%clk 0:00:07]}  Be5 {[%clk 0:00:14]} 39. a6 {[%clk 0:00:07]}  Qb6 {[%clk 0:00:12]} 40. Rd2 {[%clk 0:00:06]}  Ra8 {[%clk 0:00:07]} 41. Ra2 {[%clk 0:00:06]}  Bc7 {[%clk 0:00:04]} 42. Nd4 {[%clk 0:00:04]}  c5 {[%clk 0:00:03]} 43. Nc2 {[%clk 0:00:03]}  Bd6 {[%clk 0:00:03]} 44. Ne3 {[%clk 0:00:03]}  Qc6 {[%clk 0:00:02]} 45. Kh2 {[%clk 0:00:03]}  Be5 {[%clk 0:00:02]} 46. Nd5 {[%clk 0:00:03]}  Bd4 {[%clk 0:00:03]} 47. Kg1 {[%clk 0:00:03]}  Qd6 {[%clk 0:00:03]} 48. Nf4 {[%clk 0:00:03]}  Qe5 {[%clk 0:00:03]} 49. Nd3 {[%clk 0:00:04]}  Qxg3+ {[%clk 0:00:03]} 50. Kf1 {[%clk 0:00:04]}  Qxh3+ {[%clk 0:00:03]} 51. Kg1 {[%clk 0:00:05]}  Re8 {[%clk 0:00:02]} 52. a7 {[%clk 0:00:03]}  Qg4+ {[%clk 0:00:03]} 53. Kf1 {[%clk 0:00:03]}  Qf3 {[%clk 0:00:03]} 54. Kg1 {[%clk 0:00:02]}  Qg4+ {[%clk 0:00:03]} 55. Kf1 {[%clk 0:00:03]}  Qf3 {[%clk 0:00:04]} 56. Kg1 {[%clk 0:00:03]}  h5 {[%clk 0:00:04]} 57. Qb5 {[%clk 0:00:03]}  Qg4+ {[%clk 0:00:04]} 58. Kf1 {[%clk 0:00:03]}  Qf3 {[%clk 0:00:04]} 59. Kg1 {[%clk 0:00:03]}  Qg4+ {[%clk 0:00:04]} 60. Kf1 {[%clk 0:00:04]}  Qh3+ {[%clk 0:00:05]} 61. Kg1 {[%clk 0:00:04]}  Qg4+ {[%clk 0:00:03]} 1/2-1/2


[Site "https://www.chess.com"]

[Event "Titled Tuesday Blitz February 22 Late 2022"]
[White "Sevian, Samuel"]
[Black "Kamsky, Gata"]
[WhiteFideId "2040506"]
[BlackFideId "2000024"]
[WhiteElo "2698"]
[BlackElo "2645"]
[Result "1-0"]
[Round "07"]
[TimeControl "180+1"]
[Date "2022.02.22"]
[WhiteClock "0:00:19"]
[BlackClock "0:00:01"]

1. e4 {[%clk 0:03:00]}  c5 {[%clk 0:02:57]} 2. Nf3 {[%clk 0:03:00]}  e6 {[%clk 0:02:57]} 3. d4 {[%clk 0:03:00]}  cxd4 {[%clk 0:02:57]} 4. Nxd4 {[%clk 0:02:59]}  Nf6 {[%clk 0:02:57]} 5. Nc3 {[%clk 0:02:57]}  d6 {[%clk 0:02:58]} 6. g4 {[%clk 0:02:57]}  h6 {[%clk 0:02:57]} 7. h3 {[%clk 0:02:57]}  a6 {[%clk 0:02:51]} 8. Bg2 {[%clk 0:02:57]}  g5 {[%clk 0:02:50]} 9. Qe2 {[%clk 0:02:55]}  Be7 {[%clk 0:02:43]} 10. Be3 {[%clk 0:02:49]}  Nbd7 {[%clk 0:02:33]} 11. O-O-O {[%clk 0:02:49]}  Qc7 {[%clk 0:02:28]} 12. h4 {[%clk 0:02:33]}  Rg8 {[%clk 0:02:27]} 13. hxg5 {[%clk 0:02:33]}  hxg5 {[%clk 0:02:27]} 14. f4 {[%clk 0:02:34]}  gxf4 {[%clk 0:02:25]} 15. Bxf4 {[%clk 0:02:35]}  e5 {[%clk 0:02:15]} 16. g5 {[%clk 0:02:35]}  exf4 {[%clk 0:01:33]} 17. gxf6 {[%clk 0:02:34]}  Nxf6 {[%clk 0:01:32]} 18. Bh3 {[%clk 0:02:35]}  Bxh3 {[%clk 0:01:29]} 19. Rxh3 {[%clk 0:02:36]}  O-O-O {[%clk 0:01:29]} 20. Nd5 {[%clk 0:02:15]}  Nxd5 {[%clk 0:01:24]} 21. exd5 {[%clk 0:02:16]}  Rg3 {[%clk 0:01:18]} 22. Rd3 {[%clk 0:01:26]}  Kb8 {[%clk 0:01:02]} 23. Rc3 {[%clk 0:00:22]}  f3 {[%clk 0:00:25]} 24. Nxf3 {[%clk 0:00:20]}  Rxh3 {[%clk 0:00:03]} 25. Rxc7 {[%clk 0:00:20]}  Rh1+ {[%clk 0:00:01]} 26. Kd2 {[%clk 0:00:20]}  Kxc7 {[%clk 0:00:01]} 27. Qxe7+ {[%clk 0:00:20]}  Rd7 {[%clk 0:00:02]} 28. Qf6 {[%clk 0:00:21]}  Kb8 {[%clk 0:00:01]} 29. Nd4 {[%clk 0:00:19]} 1-0


[Site "https://www.chess.com"]

[Event "Titled Tuesday Blitz February 22 Late 2022"]
[White "Terry, Renato"]
[Black "Chigaev, Maksim"]
[WhiteFideId "3803457"]
[BlackFideId "4108116"]
[WhiteElo "2577"]
[BlackElo "2502"]
[Result "1-0"]
[Round "07"]
[TimeControl "180+1"]
[Date "2022.02.22"]
[WhiteClock "0:00:05"]
[BlackClock "0:00:03"]

1. d4 {[%clk 0:03:00]}  d5 {[%clk 0:02:59]} 2. Bg5 {[%clk 0:02:59]}  f6 {[%clk 0:02:53]} 3. Bf4 {[%clk 0:02:58]}  Nc6 {[%clk 0:02:52]} 4. Nf3 {[%clk 0:02:56]}  g5 {[%clk 0:02:42]} 5. Bc1 {[%clk 0:02:52]}  g4 {[%clk 0:02:34]} 6. Nh4 {[%clk 0:02:46]}  e5 {[%clk 0:02:34]} 7. e3 {[%clk 0:02:39]}  f5 {[%clk 0:02:27]} 8. g3 {[%clk 0:02:37]}  e4 {[%clk 0:02:25]} 9. c4 {[%clk 0:02:35]}  Nf6 {[%clk 0:02:09]} 10. Nc3 {[%clk 0:02:33]}  Ne7 {[%clk 0:02:07]} 11. h3 {[%clk 0:02:25]}  c6 {[%clk 0:02:02]} 12. Ng2 {[%clk 0:02:24]}  Bg7 {[%clk 0:01:59]} 13. hxg4 {[%clk 0:02:16]}  fxg4 {[%clk 0:01:59]} 14. Nf4 {[%clk 0:02:17]}  h5 {[%clk 0:02:00]} 15. Qb3 {[%clk 0:02:15]}  a6 {[%clk 0:01:38]} 16. Bd2 {[%clk 0:02:13]}  b5 {[%clk 0:01:29]} 17. cxd5 {[%clk 0:02:13]}  cxd5 {[%clk 0:01:29]} 18. a4 {[%clk 0:02:11]}  bxa4 {[%clk 0:01:28]} 19. Nxa4 {[%clk 0:02:11]}  Bf5 {[%clk 0:01:24]} 20. Nc5 {[%clk 0:02:06]}  Kf7 {[%clk 0:01:21]} 21. Rxa6 {[%clk 0:02:03]}  Rxa6 {[%clk 0:01:19]} 22. Bxa6 {[%clk 0:02:04]}  Bh6 {[%clk 0:01:18]} 23. Ng2 {[%clk 0:01:47]}  Bg5 {[%clk 0:01:03]} 24. Qb7 {[%clk 0:01:37]}  Qb8 {[%clk 0:00:56]} 25. b4 {[%clk 0:01:26]}  Qd6 {[%clk 0:00:55]} 26. Be2 {[%clk 0:01:19]}  Rb8 {[%clk 0:00:24]} 27. Qa6 {[%clk 0:01:19]}  Rb6 {[%clk 0:00:17]} 28. Qa7 {[%clk 0:01:17]}  Kg6 {[%clk 0:00:15]} 29. b5 {[%clk 0:01:12]}  Nc8 {[%clk 0:00:15]} 30. Qa8 {[%clk 0:01:11]}  Rb8 {[%clk 0:00:13]} 31. Qa6 {[%clk 0:01:09]}  Nb6 {[%clk 0:00:13]} 32. Qa2 {[%clk 0:00:54]}  Ra8 {[%clk 0:00:12]} 33. Na6 {[%clk 0:00:54]}  Nc4 {[%clk 0:00:11]} 34. O-O {[%clk 0:00:45]}  h4 {[%clk 0:00:08]} 35. gxh4 {[%clk 0:00:34]}  Rh8 {[%clk 0:00:09]} 36. Bxc4 {[%clk 0:00:31]}  Bxh4 {[%clk 0:00:06]} 37. Nf4+ {[%clk 0:00:31]}  Kg5 {[%clk 0:00:06]} 38. Bb4 {[%clk 0:00:27]}  Qd7 {[%clk 0:00:06]} 39. Bxd5 {[%clk 0:00:26]}  Qh7 {[%clk 0:00:03]} 40. Ra1 {[%clk 0:00:08]}  Bxf2+ {[%clk 0:00:03]} 41. Kxf2 {[%clk 0:00:09]}  Qh4+ {[%clk 0:00:02]} 42. Ke2 {[%clk 0:00:09]}  Qh2+ {[%clk 0:00:02]} 43. Kd1 {[%clk 0:00:09]}  Qg1+ {[%clk 0:00:03]} 44. Kd2 {[%clk 0:00:09]}  Rh2+ {[%clk 0:00:03]} 45. Ne2 {[%clk 0:00:09]}  Qf2 {[%clk 0:00:02]} 46. Re1 {[%clk 0:00:09]}  g3 {[%clk 0:00:02]} 47. Bd6 {[%clk 0:00:09]}  Ng4 {[%clk 0:00:03]} 48. Bf4+ {[%clk 0:00:08]}  Kh5 {[%clk 0:00:02]} 49. Bf7+ {[%clk 0:00:07]}  Bg6 {[%clk 0:00:01]} 50. Bxg6+ {[%clk 0:00:07]}  Kh4 {[%clk 0:00:02]} 51. Qg8 {[%clk 0:00:05]}  Kh3 {[%clk 0:00:02]} 52. Qh7+ {[%clk 0:00:05]}  Kg2 {[%clk 0:00:03]} 53. Bxe4+ {[%clk 0:00:05]} 1-0


[Site "https://www.chess.com"]